[Event "Early-Titled-Tuesday-Blitz-September-12-2023"]
[Site "Chess.com"]
[Date "2023.09.12"]
[Round "10"]
[White "Sleepless_Knightmare"]
[Black "MANOJ_MISHRA123"]
[Result "0-1"]
[WhiteElo "2395"]
[BlackElo "2244"]
[TimeControl "180+1"]
[EndTime "9:53:49 PDT"]
[Termination "MANOJ_MISHRA123 won by resignation"]

1. e4 {[%clk 0:02:02.4]} 1... c6 {[%clk 0:02:58.2]} 2. d4 {[%clk 0:02:01.2]}
2... d5 {[%clk 0:02:58.9]} 3. Nc3 {[%clk 0:02:00.5]} 3... g6 {[%clk 0:02:57.5]}
4. h4 {[%clk 0:01:59]} 4... h5 {[%clk 0:02:56]} 5. e5 {[%clk 0:01:51.1]} 5...
Nh6 {[%clk 0:02:50.2]} 6. Bg5 {[%clk 0:01:48.8]} 6... Qb6 {[%clk 0:02:44.7]} 7.
a3 {[%clk 0:01:47.5]} 7... Bg4 {[%clk 0:02:37]} 8. f3 {[%clk 0:01:46.2]} 8...
Bf5 {[%clk 0:02:37.2]} 9. Na4 {[%clk 0:01:34]} 9... Qa5+ {[%clk 0:02:32.5]} 10.
c3 {[%clk 0:01:33.9]} 10... Qc7 {[%clk 0:02:32]} 11. b4 {[%clk 0:01:29.4]} 11...
a5 {[%clk 0:02:29.1]} 12. Ne2 {[%clk 0:01:22.4]} 12... axb4 {[%clk 0:02:24.1]}
13. axb4 {[%clk 0:01:23.3]} 13... Nd7 {[%clk 0:02:19.1]} 14. Ng3 {[%clk
0:01:22.2]} 14... Bg7 {[%clk 0:02:06.6]} 15. Nxf5 {[%clk 0:01:21.4]} 15... Nxf5
{[%clk 0:02:05.8]} 16. Bd3 {[%clk 0:01:18.2]} 16... e6 {[%clk 0:02:03.2]} 17. g4
{[%clk 0:01:16.6]} 17... hxg4 {[%clk 0:02:01.6]} 18. fxg4 {[%clk 0:01:17.5]}
18... Ng3 {[%clk 0:02:01.7]} 19. Rh3 {[%clk 0:01:15]} 19... Ne4 {[%clk
0:02:01.7]} 20. Bxe4 {[%clk 0:01:14.9]} 20... dxe4 {[%clk 0:02:01.9]} 21. Re3
{[%clk 0:01:10.8]} 21... O-O {[%clk 0:01:49.1]} 22. Rxe4 {[%clk 0:01:10.3]}
22... b6 {[%clk 0:01:41.2]} 23. Be7 {[%clk 0:01:06.7]} 23... Rfe8 {[%clk
0:01:35.1]} 24. Bd6 {[%clk 0:01:06.5]} 24... Qb7 {[%clk 0:01:35.1]} 25. Nb2
{[%clk 0:01:05.5]} 25... Rxa1 {[%clk 0:01:33.7]} 26. Qxa1 {[%clk 0:01:04.8]}
26... Ra8 {[%clk 0:01:34.4]} 27. Qb1 {[%clk 0:01:03.4]} 27... c5 {[%clk
0:01:23.3]} 28. Nd3 {[%clk 0:00:46]} 28... Qxe4+ {[%clk 0:01:21.5]} 0-1

[Event "Early-Titled-Tuesday-Blitz-September-12-2023"]
[Site "Chess.com"]
[Date "2023.09.12"]
[Round "10"]
[White "Zampronha1971"]
[Black "CristianS27"]
[Result "0-1"]
[WhiteElo "2329"]
[BlackElo "2505"]
[TimeControl "180+1"]
[EndTime "9:53:53 PDT"]
[Termination "CristianS27 won by checkmate"]

1. e4 {[%clk 0:03:00.9]} 1... e5 {[%clk 0:02:51.7]} 2. Nf3 {[%clk 0:02:55.9]}
2... d5 {[%clk 0:02:52.2]} 3. d4 {[%clk 0:02:53.8]} 3... dxe4 {[%clk 0:02:52.4]}
4. Nxe5 {[%clk 0:02:54]} 4... Nd7 {[%clk 0:02:53.3]} 5. Nxd7 {[%clk 0:02:51.7]}
5... Bxd7 {[%clk 0:02:54.2]} 6. Bc4 {[%clk 0:02:50.1]} 6... Bd6 {[%clk
0:02:54.4]} 7. O-O {[%clk 0:02:45.6]} 7... Qh4 {[%clk 0:02:54.5]} 8. g3 {[%clk
0:02:44.9]} 8... Qh3 {[%clk 0:02:55.1]} 9. Re1 {[%clk 0:02:41.3]} 9... Nf6
{[%clk 0:02:55.5]} 10. Bf1 {[%clk 0:02:37.8]} 10... Qf5 {[%clk 0:02:55.8]} 11.
Nc3 {[%clk 0:02:31.4]} 11... O-O-O {[%clk 0:02:56.2]} 12. Bg2 {[%clk 0:02:29.4]}
12... Rde8 {[%clk 0:02:56.8]} 13. Be3 {[%clk 0:02:23]} 13... h5 {[%clk
0:02:57.2]} 14. a4 {[%clk 0:02:07.5]} 14... h4 {[%clk 0:02:56.7]} 15. Nb5 {[%clk
0:02:05.1]} 15... hxg3 {[%clk 0:02:55.7]} 16. hxg3 {[%clk 0:02:03.6]} 16... Kb8
{[%clk 0:02:49.5]} 17. Nxd6 {[%clk 0:02:02.8]} 17... cxd6 {[%clk 0:02:50.4]} 18.
c4 {[%clk 0:01:59.2]} 18... Ng4 {[%clk 0:02:38]} 19. Qd2 {[%clk 0:01:34.6]}
19... Qh5 {[%clk 0:02:34]} 20. b4 {[%clk 0:01:25.5]} 20... Qh2+ {[%clk
0:01:55.4]} 21. Kf1 {[%clk 0:01:25.2]} 21... Nxe3+ {[%clk 0:01:56.3]} 22. Qxe3
{[%clk 0:01:24.9]} 22... Bg4 {[%clk 0:01:38.2]} 23. Qf4 {[%clk 0:01:22.8]} 23...
f5 {[%clk 0:01:27.9]} 24. Qxd6+ {[%clk 0:01:20.9]} 24... Ka8 {[%clk 0:01:28.4]}
25. Ra3 {[%clk 0:01:11.4]} 25... Rh6 {[%clk 0:01:19.9]} 26. Qf4 {[%clk
0:01:02.9]} 26... Reh8 {[%clk 0:01:19.6]} 27. d5 {[%clk 0:00:49.4]} 27... Qh1+
{[%clk 0:01:15.9]} 28. Bxh1 {[%clk 0:00:41.2]} 28... Rxh1+ {[%clk 0:01:16.8]}
29. Kg2 {[%clk 0:00:41.7]} 29... R8h2# {[%clk 0:01:17.1]} 0-1

[Event "Early-Titled-Tuesday-Blitz-September-12-2023"]
[Site "Chess.com"]
[Date "2023.09.12"]
[Round "10"]
[White "the-gambler"]
[Black "KatakuriDono"]
[Result "1-0"]
[WhiteElo "2488"]
[BlackElo "2333"]
[TimeControl "180+1"]
[EndTime "9:54:02 PDT"]
[Termination "the-gambler won by resignation"]

1. e4 {[%clk 0:02:57.4]} 1... e5 {[%clk 0:03:00]} 2. Nf3 {[%clk 0:02:56.4]} 2...
Nc6 {[%clk 0:03:00.4]} 3. Nc3 {[%clk 0:02:56]} 3... Nf6 {[%clk 0:03:00]} 4. g3
{[%clk 0:02:56.7]} 4... Be7 {[%clk 0:02:56.9]} 5. Bg2 {[%clk 0:02:56.8]} 5...
O-O {[%clk 0:02:56.9]} 6. O-O {[%clk 0:02:57]} 6... h6 {[%clk 0:02:55.3]} 7. d3
{[%clk 0:02:56.7]} 7... d6 {[%clk 0:02:53.1]} 8. h4 {[%clk 0:02:56.5]} 8... Bg4
{[%clk 0:02:52.4]} 9. Be3 {[%clk 0:02:56.1]} 9... Nd7 {[%clk 0:02:42.4]} 10. Nd5
{[%clk 0:02:54.5]} 10... f5 {[%clk 0:02:36.6]} 11. Qd2 {[%clk 0:02:54.1]} 11...
fxe4 {[%clk 0:02:31]} 12. Nh2 {[%clk 0:02:51.6]} 12... Bf3 {[%clk 0:02:23]} 13.
dxe4 {[%clk 0:02:51.2]} 13... Bxg2 {[%clk 0:02:23.2]} 14. Kxg2 {[%clk 0:02:51]}
14... Nf6 {[%clk 0:02:22.3]} 15. Nxf6+ {[%clk 0:02:48.3]} 15... Bxf6 {[%clk
0:02:20.5]} 16. c3 {[%clk 0:02:48]} 16... Ne7 {[%clk 0:02:14.4]} 17. Ng4 {[%clk
0:02:43.2]} 17... Ng6 {[%clk 0:02:13.2]} 18. h5 {[%clk 0:02:38.2]} 18... Nh8
{[%clk 0:02:06.3]} 19. Bxh6 {[%clk 0:02:31.6]} 19... gxh6 {[%clk 0:01:59.3]} 20.
Nxh6+ {[%clk 0:02:31.4]} 20... Kh7 {[%clk 0:01:54.2]} 21. Nf5 {[%clk 0:02:25.4]}
21... Bg5 {[%clk 0:01:49.8]} 22. f4 {[%clk 0:02:24.8]} 22... Bf6 {[%clk
0:01:49.8]} 23. Qd5 {[%clk 0:02:20.9]} 23... Qe8 {[%clk 0:01:40.2]} 24. Qxb7
{[%clk 0:02:14.4]} 24... Rb8 {[%clk 0:01:31.4]} 25. Qxc7+ {[%clk 0:02:12.4]}
25... Rf7 {[%clk 0:01:30.9]} 26. Qc4 {[%clk 0:02:11.8]} 26... Rxb2+ {[%clk
0:01:30.3]} 27. Rf2 {[%clk 0:02:11.7]} 27... Rxf2+ {[%clk 0:01:27.9]} 28. Kxf2
{[%clk 0:02:12]} 28... Qd8 {[%clk 0:01:14.7]} 29. Rd1 {[%clk 0:02:06]} 29...
exf4 {[%clk 0:01:10.7]} 30. gxf4 {[%clk 0:02:05.6]} 30... Rc7 {[%clk 0:01:07.9]}
31. Qe6 {[%clk 0:02:00]} 31... Rxc3 {[%clk 0:01:02.5]} 32. Rxd6 {[%clk
0:01:58.5]} 32... Rc2+ {[%clk 0:00:53.1]} 33. Kf3 {[%clk 0:01:53.3]} 33... Rc3+
{[%clk 0:00:51.1]} 34. Ke2 {[%clk 0:01:52.2]} 34... Rc2+ {[%clk 0:00:42.8]} 35.
Kd1 {[%clk 0:01:49.3]} 35... Qc8 {[%clk 0:00:29.5]} 36. Rd7+ {[%clk 0:01:41.1]}
1-0

[Event "Early-Titled-Tuesday-Blitz-September-12-2023"]
[Site "Chess.com"]
[Date "2023.09.12"]
[Round "10"]
[White "Srisshhhtea"]
[Black "HanSchut"]
[Result "1-0"]
[WhiteElo "2424"]
[BlackElo "2271"]
[TimeControl "180+1"]
[EndTime "9:54:06 PDT"]
[Termination "Srisshhhtea won by checkmate"]

1. e4 {[%clk 0:02:44.3]} 1... c5 {[%clk 0:02:59.7]} 2. Nf3 {[%clk 0:02:42.8]}
2... d6 {[%clk 0:03:00]} 3. d4 {[%clk 0:02:42.2]} 3... cxd4 {[%clk 0:03:00.4]}
4. Nxd4 {[%clk 0:02:43.1]} 4... Nf6 {[%clk 0:03:00.9]} 5. Nc3 {[%clk 0:02:43]}
5... a6 {[%clk 0:03:01.2]} 6. f3 {[%clk 0:02:39.7]} 6... e5 {[%clk 0:03:00.7]}
7. Nb3 {[%clk 0:02:40.3]} 7... Be6 {[%clk 0:03:00.5]} 8. Be3 {[%clk 0:02:40.4]}
8... Be7 {[%clk 0:03:00.5]} 9. Qd2 {[%clk 0:02:39.5]} 9... Nbd7 {[%clk
0:03:00.6]} 10. Nd5 {[%clk 0:02:37.1]} 10... Nxd5 {[%clk 0:02:48.1]} 11. exd5
{[%clk 0:02:38]} 11... Bf5 {[%clk 0:02:48.5]} 12. O-O-O {[%clk 0:02:35.5]} 12...
Rc8 {[%clk 0:02:45.2]} 13. Bd3 {[%clk 0:02:32.9]} 13... Bxd3 {[%clk 0:02:44.2]}
14. Qxd3 {[%clk 0:02:33.8]} 14... Bg5 {[%clk 0:02:44.2]} 15. Kb1 {[%clk
0:02:33.3]} 15... Bxe3 {[%clk 0:02:41.7]} 16. Qxe3 {[%clk 0:02:34.2]} 16... O-O
{[%clk 0:02:37.7]} 17. g4 {[%clk 0:02:34.3]} 17... Nc5 {[%clk 0:02:36.5]} 18. h4
{[%clk 0:02:32.5]} 18... Nxb3 {[%clk 0:02:35.1]} 19. axb3 {[%clk 0:02:33.4]}
19... b5 {[%clk 0:02:34.7]} 20. h5 {[%clk 0:02:32.5]} 20... Rc5 {[%clk
0:02:32.8]} 21. g5 {[%clk 0:02:25.9]} 21... Qa8 {[%clk 0:02:32]} 22. Qe4 {[%clk
0:02:25.1]} 22... f5 {[%clk 0:02:22.1]} 23. gxf6 {[%clk 0:02:24.9]} 23... Rxf6
{[%clk 0:02:22.7]} 24. Rhg1 {[%clk 0:02:21.1]} 24... Rf4 {[%clk 0:02:15.9]} 25.
Qd3 {[%clk 0:02:14]} 25... Qf8 {[%clk 0:02:08.7]} 26. h6 {[%clk 0:02:13.9]}
26... g6 {[%clk 0:02:03.1]} 27. Qd2 {[%clk 0:01:56.7]} 27... Qxh6 {[%clk
0:01:52.3]} 28. Rh1 {[%clk 0:01:54.9]} 28... Qf8 {[%clk 0:01:51.3]} 29. Qh2
{[%clk 0:01:51.7]} 29... Qf7 {[%clk 0:01:46.6]} 30. Rdg1 {[%clk 0:01:43]} 30...
Rf6 {[%clk 0:01:16.3]} 31. Qh3 {[%clk 0:01:22.3]} 31... Rxd5 {[%clk 0:01:09.5]}
32. Qc8+ {[%clk 0:01:21]} 32... Kg7 {[%clk 0:01:02.6]} 33. Rxh7+ {[%clk
0:01:16]} 33... Kxh7 {[%clk 0:00:56.3]} 34. Rh1+ {[%clk 0:01:16.9]} 34... Kg7
{[%clk 0:00:53.9]} 35. Qh8# {[%clk 0:01:16]} 1-0

[Event "Early-Titled-Tuesday-Blitz-September-12-2023"]
[Site "Chess.com"]
[Date "2023.09.12"]
[Round "10"]
[White "Casper"]
[Black "Iskusnyh"]
[Result "1-0"]
[WhiteElo "2453"]
[BlackElo "2608"]
[TimeControl "180+1"]
[EndTime "9:54:12 PDT"]
[Termination "Casper won by resignation"]

1. e4 {[%clk 0:03:00.9]} 1... e6 {[%clk 0:02:59.5]} 2. d4 {[%clk 0:02:59.9]}
2... d5 {[%clk 0:02:59.9]} 3. Bd3 {[%clk 0:03:00.3]} 3... c5 {[%clk 0:02:58.7]}
4. exd5 {[%clk 0:02:58.1]} 4... exd5 {[%clk 0:02:58.2]} 5. dxc5 {[%clk
0:02:55.7]} 5... Bxc5 {[%clk 0:02:57.5]} 6. Nf3 {[%clk 0:02:56.4]} 6... Nf6
{[%clk 0:02:57.3]} 7. O-O {[%clk 0:02:55.3]} 7... O-O {[%clk 0:02:57.2]} 8. Bg5
{[%clk 0:02:56]} 8... Nc6 {[%clk 0:02:55.9]} 9. Nc3 {[%clk 0:02:53.4]} 9... Bg4
{[%clk 0:02:51.5]} 10. h3 {[%clk 0:02:44.5]} 10... Bh5 {[%clk 0:02:50.9]} 11.
Bxf6 {[%clk 0:02:29.3]} 11... Qxf6 {[%clk 0:02:49.8]} 12. Nxd5 {[%clk
0:02:29.4]} 12... Qxb2 {[%clk 0:02:45.8]} 13. Rb1 {[%clk 0:02:26.8]} 13... Qxa2
{[%clk 0:02:13.3]} 14. Rxb7 {[%clk 0:02:18]} 14... Nd4 {[%clk 0:01:57.8]} 15.
Bxh7+ {[%clk 0:01:50.4]} 15... Kxh7 {[%clk 0:01:45.6]} 16. Ng5+ {[%clk
0:01:50.5]} 16... Kg6 {[%clk 0:01:44.4]} 17. Nf4+ {[%clk 0:01:44.7]} 17... Kxg5
{[%clk 0:01:41.8]} 18. Qxh5+ {[%clk 0:01:15]} 18... Kf6 {[%clk 0:01:40.9]} 19.
Nd5+ {[%clk 0:00:59.9]} 19... Qxd5 {[%clk 0:01:27]} 20. Qxd5 {[%clk 0:00:58.8]}
20... Rac8 {[%clk 0:01:23.6]} 21. Re1 {[%clk 0:00:47.1]} 21... Ne6 {[%clk
0:01:22.6]} 22. h4 {[%clk 0:00:37.9]} 22... Rfd8 {[%clk 0:01:13.7]} 23. Rxe6+
{[%clk 0:00:34.8]} 1-0

[Event "Early-Titled-Tuesday-Blitz-September-12-2023"]
[Site "Chess.com"]
[Date "2023.09.12"]
[Round "10"]
[White "Agibileg"]
[Black "Byniolus"]
[Result "1-0"]
[WhiteElo "2655"]
[BlackElo "2774"]
[TimeControl "180+1"]
[EndTime "9:54:22 PDT"]
[Termination "Agibileg won by resignation"]

1. d4 {[%clk 0:03:00.7]} 1... Nf6 {[%clk 0:02:59.8]} 2. c4 {[%clk 0:03:00.1]}
2... g6 {[%clk 0:03:00.4]} 3. Nc3 {[%clk 0:02:59.1]} 3... Bg7 {[%clk 0:03:01]}
4. e4 {[%clk 0:02:59.3]} 4... O-O {[%clk 0:03:01.2]} 5. Be2 {[%clk 0:02:59.8]}
5... c6 {[%clk 0:03:00.6]} 6. Nf3 {[%clk 0:03:00.2]} 6... d5 {[%clk 0:03:00.6]}
7. cxd5 {[%clk 0:02:57.4]} 7... cxd5 {[%clk 0:03:00.6]} 8. e5 {[%clk 0:02:58.3]}
8... Ne4 {[%clk 0:02:59.2]} 9. O-O {[%clk 0:02:57.6]} 9... Nc6 {[%clk
0:02:53.9]} 10. h4 {[%clk 0:02:51.3]} 10... Bg4 {[%clk 0:02:48.1]} 11. Be3
{[%clk 0:02:51.5]} 11... Nxc3 {[%clk 0:02:40.4]} 12. bxc3 {[%clk 0:02:51.6]}
12... e6 {[%clk 0:02:39.7]} 13. Ng5 {[%clk 0:02:48.5]} 13... Bxe2 {[%clk
0:02:38.8]} 14. Qxe2 {[%clk 0:02:49.4]} 14... h6 {[%clk 0:02:29.1]} 15. Nf3
{[%clk 0:02:49.7]} 15... Rc8 {[%clk 0:02:28]} 16. h5 {[%clk 0:02:48.1]} 16... g5
{[%clk 0:02:23.6]} 17. Nh2 {[%clk 0:02:46.2]} 17... f5 {[%clk 0:02:14.1]} 18.
exf6 {[%clk 0:02:45.9]} 18... Qxf6 {[%clk 0:02:14.4]} 19. f4 {[%clk 0:02:34.5]}
19... gxf4 {[%clk 0:02:13.5]} 20. Bxf4 {[%clk 0:02:25.8]} 20... Qe7 {[%clk
0:01:28.8]} 21. Ng4 {[%clk 0:02:24]} 21... Nxd4 {[%clk 0:01:22.1]} 22. cxd4
{[%clk 0:02:17.5]} 22... Bxd4+ {[%clk 0:01:23]} 23. Be3 {[%clk 0:02:07.1]} 23...
Bxa1 {[%clk 0:01:22.8]} 24. Nxh6+ {[%clk 0:02:03.6]} 24... Kh8 {[%clk
0:01:16.6]} 25. Rxa1 {[%clk 0:02:03.2]} 25... e5 {[%clk 0:01:16.4]} 26. Bd4
{[%clk 0:01:59.8]} 26... Rce8 {[%clk 0:01:13.2]} 27. Re1 {[%clk 0:01:58.5]}
27... Qg5 {[%clk 0:01:03]} 28. Bxe5+ {[%clk 0:01:47.4]} 28... Kh7 {[%clk
0:01:03.2]} 29. Ng4 {[%clk 0:01:40.5]} 29... Rf5 {[%clk 0:00:53.5]} 30. h6
{[%clk 0:01:31.2]} 30... d4 {[%clk 0:00:51.5]} 31. Qe4 {[%clk 0:01:30.6]} 31...
d3 {[%clk 0:00:45.1]} 32. Rf1 {[%clk 0:00:58.8]} 32... d2 {[%clk 0:00:45.1]} 33.
Rxf5 {[%clk 0:00:58.6]} 1-0

[Event "Early-Titled-Tuesday-Blitz-September-12-2023"]
[Site "Chess.com"]
[Date "2023.09.12"]
[Round "10"]
[White "ElenaPershina"]
[Black "ljuks68"]
[Result "0-1"]
[WhiteElo "2258"]
[BlackElo "2430"]
[TimeControl "180+1"]
[EndTime "9:54:24 PDT"]
[Termination "ljuks68 won by resignation"]

1. d4 {[%clk 0:03:00.9]} 1... d5 {[%clk 0:02:59.8]} 2. Nf3 {[%clk 0:03:00.9]}
2... Nf6 {[%clk 0:03:00.1]} 3. g3 {[%clk 0:03:01.4]} 3... Bf5 {[%clk 0:02:59.7]}
4. Bg2 {[%clk 0:03:00.5]} 4... e6 {[%clk 0:03:00.1]} 5. O-O {[%clk 0:02:52.1]}
5... Nbd7 {[%clk 0:03:00.3]} 6. c4 {[%clk 0:02:52.6]} 6... c6 {[%clk 0:03:00.4]}
7. b3 {[%clk 0:02:43.9]} 7... Bd6 {[%clk 0:02:59.9]} 8. Bb2 {[%clk 0:02:42.9]}
8... O-O {[%clk 0:02:59.8]} 9. Nbd2 {[%clk 0:02:41.8]} 9... Re8 {[%clk
0:02:56.8]} 10. Nh4 {[%clk 0:02:39.3]} 10... Bg4 {[%clk 0:02:56.1]} 11. Re1
{[%clk 0:02:22.1]} 11... e5 {[%clk 0:02:48.5]} 12. cxd5 {[%clk 0:02:20.7]} 12...
cxd5 {[%clk 0:02:48.2]} 13. dxe5 {[%clk 0:02:15.9]} 13... Nxe5 {[%clk
0:02:48.3]} 14. h3 {[%clk 0:02:05.2]} 14... Be6 {[%clk 0:02:47.7]} 15. Ndf3
{[%clk 0:01:55.2]} 15... Nc6 {[%clk 0:02:47.2]} 16. Nd4 {[%clk 0:01:53.6]} 16...
Ne4 {[%clk 0:02:25]} 17. Nxc6 {[%clk 0:01:41]} 17... bxc6 {[%clk 0:02:24.9]} 18.
Qd4 {[%clk 0:01:39.1]} 18... f6 {[%clk 0:02:06]} 19. Rac1 {[%clk 0:01:33.7]}
19... Be5 {[%clk 0:02:03.9]} 20. Qd3 {[%clk 0:01:05.9]} 20... Bxb2 {[%clk
0:02:03.2]} 21. Rxc6 {[%clk 0:01:06.5]} 21... Qd7 {[%clk 0:02:00.3]} 22. Rc2
{[%clk 0:00:59.4]} 22... Ba3 {[%clk 0:01:50.3]} 23. Rd1 {[%clk 0:00:59.1]} 23...
Qb7 {[%clk 0:01:13.3]} 24. Nf3 {[%clk 0:00:44]} 24... Bc5 {[%clk 0:01:02.4]} 25.
Nd4 {[%clk 0:00:41.7]} 25... Bxd4 {[%clk 0:01:00.1]} 26. Qxd4 {[%clk 0:00:42.6]}
26... Rac8 {[%clk 0:00:53.5]} 0-1

[Event "Early-Titled-Tuesday-Blitz-September-12-2023"]
[Site "Chess.com"]
[Date "2023.09.12"]
[Round "10"]
[White "TatjanaVasilevich"]
[Black "Zheenbekov86"]
[Result "1-0"]
[WhiteElo "2564"]
[BlackElo "2415"]
[TimeControl "180+1"]
[EndTime "9:54:47 PDT"]
[Termination "TatjanaVasilevich won on time"]

1. e4 {[%clk 0:03:00.9]} 1... e5 {[%clk 0:02:59.8]} 2. Nf3 {[%clk 0:03:01.1]}
2... Nc6 {[%clk 0:03:00]} 3. Bb5 {[%clk 0:03:01.3]} 3... a6 {[%clk 0:03:00]} 4.
Ba4 {[%clk 0:03:01.3]} 4... Nf6 {[%clk 0:02:59.8]} 5. d3 {[%clk 0:03:01.5]} 5...
b5 {[%clk 0:02:59]} 6. Bb3 {[%clk 0:03:01.5]} 6... Bc5 {[%clk 0:02:59.4]} 7. c3
{[%clk 0:03:01.5]} 7... O-O {[%clk 0:02:58.6]} 8. O-O {[%clk 0:03:00.7]} 8...
Qe7 {[%clk 0:02:54.2]} 9. d4 {[%clk 0:02:59.1]} 9... Bb6 {[%clk 0:02:54]} 10. d5
{[%clk 0:02:55.8]} 10... Nb8 {[%clk 0:02:46.8]} 11. Bc2 {[%clk 0:02:54.2]} 11...
h6 {[%clk 0:02:46.2]} 12. a4 {[%clk 0:02:53.8]} 12... Bb7 {[%clk 0:02:44.6]} 13.
b3 {[%clk 0:02:53.6]} 13... c6 {[%clk 0:02:44.5]} 14. c4 {[%clk 0:02:53.8]}
14... bxc4 {[%clk 0:02:30.2]} 15. bxc4 {[%clk 0:02:53.8]} 15... cxd5 {[%clk
0:02:29.5]} 16. cxd5 {[%clk 0:02:53.5]} 16... d6 {[%clk 0:02:26.5]} 17. Nbd2
{[%clk 0:02:53.3]} 17... Nbd7 {[%clk 0:02:26.1]} 18. Rb1 {[%clk 0:02:53.5]}
18... Rab8 {[%clk 0:02:19.8]} 19. Nc4 {[%clk 0:02:52.8]} 19... Bc5 {[%clk
0:02:18.6]} 20. Na5 {[%clk 0:02:53]} 20... Ba8 {[%clk 0:02:17]} 21. Rxb8 {[%clk
0:02:50.9]} 21... Rxb8 {[%clk 0:02:16.5]} 22. Qe2 {[%clk 0:02:51.5]} 22... Bb6
{[%clk 0:01:58.6]} 23. Nc4 {[%clk 0:02:47.6]} 23... Bc5 {[%clk 0:01:58.4]} 24.
Be3 {[%clk 0:02:40]} 24... Qd8 {[%clk 0:01:47.1]} 25. Nfd2 {[%clk 0:02:34.2]}
25... a5 {[%clk 0:01:37]} 26. Nb3 {[%clk 0:02:30.8]} 26... Bb4 {[%clk
0:01:36.3]} 27. Bd2 {[%clk 0:02:30.4]} 27... Bb7 {[%clk 0:01:30.6]} 28. Nbxa5
{[%clk 0:02:29.5]} 28... Ba6 {[%clk 0:01:26.5]} 29. Nc6 {[%clk 0:02:29.2]} 29...
Qc7 {[%clk 0:01:21.4]} 30. Bxb4 {[%clk 0:02:26.1]} 30... Rxb4 {[%clk 0:01:21]}
31. Nxb4 {[%clk 0:02:26.3]} 31... Bxc4 {[%clk 0:01:21.3]} 32. Bd3 {[%clk
0:02:26.7]} 32... Bxd3 {[%clk 0:01:19]} 33. Qxd3 {[%clk 0:02:26.9]} 33... Nc5
{[%clk 0:01:19.6]} 34. Qb5 {[%clk 0:02:27.1]} 34... Nfxe4 {[%clk 0:01:18.2]} 35.
a5 {[%clk 0:02:27.2]} 35... Nc3 {[%clk 0:01:14.6]} 36. Qb6 {[%clk 0:02:21.2]}
36... Qd7 {[%clk 0:01:04.8]} 37. a6 {[%clk 0:02:18.9]} 37... Ne2+ {[%clk
0:00:56.2]} 38. Kh1 {[%clk 0:02:18.6]} 38... Nf4 {[%clk 0:00:54.9]} 39. a7
{[%clk 0:02:16.7]} 39... Qg4 {[%clk 0:00:54.8]} 40. a8=Q+ {[%clk 0:02:16.4]}
40... Kh7 {[%clk 0:00:54]} 41. Rg1 {[%clk 0:02:15.7]} 41... Nh3 {[%clk
0:00:30.2]} 42. Qa2 {[%clk 0:02:11.7]} 42... Nxg1 {[%clk 0:00:29.1]} 43. Qc2+
{[%clk 0:02:08.3]} 43... g6 {[%clk 0:00:28.9]} 44. Qxd6 {[%clk 0:02:04]} 44...
Nh3 {[%clk 0:00:15.6]} 45. Qdxc5 {[%clk 0:01:58.6]} 1-0

[Event "Early-Titled-Tuesday-Blitz-September-12-2023"]
[Site "Chess.com"]
[Date "2023.09.12"]
[Round "10"]
[White "YEIKO2017"]
[Black "LuisFSiles"]
[Result "1-0"]
[WhiteElo "2534"]
[BlackElo "2383"]
[TimeControl "180+1"]
[EndTime "9:54:47 PDT"]
[Termination "YEIKO2017 won by resignation"]

1. e4 {[%clk 0:03:00.9]} 1... c5 {[%clk 0:02:59.7]} 2. Nf3 {[%clk 0:02:54.1]}
2... Nc6 {[%clk 0:02:59.6]} 3. Bb5 {[%clk 0:02:53.3]} 3... g6 {[%clk 0:02:59.1]}
4. c3 {[%clk 0:02:52.9]} 4... Nf6 {[%clk 0:02:58.3]} 5. e5 {[%clk 0:02:52.4]}
5... Nd5 {[%clk 0:02:58.2]} 6. d4 {[%clk 0:02:52.4]} 6... cxd4 {[%clk
0:02:56.2]} 7. Qb3 {[%clk 0:02:51.9]} 7... Nc7 {[%clk 0:02:48.2]} 8. Bc4 {[%clk
0:02:51.5]} 8... Ne6 {[%clk 0:02:38.1]} 9. cxd4 {[%clk 0:02:51]} 9... Na5 {[%clk
0:02:22.4]} 10. Qc3 {[%clk 0:02:49.5]} 10... Nxc4 {[%clk 0:02:21.4]} 11. Qxc4
{[%clk 0:02:50.4]} 11... d5 {[%clk 0:02:09.8]} 12. Qb3 {[%clk 0:02:22.2]} 12...
Bg7 {[%clk 0:01:39.4]} 13. Nc3 {[%clk 0:02:15.8]} 13... Nc7 {[%clk 0:01:39]} 14.
h3 {[%clk 0:02:06.3]} 14... O-O {[%clk 0:01:37.9]} 15. O-O {[%clk 0:02:06.2]}
15... b6 {[%clk 0:00:57.2]} 16. Be3 {[%clk 0:01:54.6]} 16... Ba6 {[%clk
0:00:56.7]} 17. Rfc1 {[%clk 0:01:36.7]} 17... Qd7 {[%clk 0:00:52.2]} 18. a4
{[%clk 0:01:22.9]} 18... Rfc8 {[%clk 0:00:39.2]} 19. a5 {[%clk 0:01:14.4]} 19...
Rab8 {[%clk 0:00:32.2]} 20. axb6 {[%clk 0:00:59.1]} 20... Rxb6 {[%clk
0:00:31.9]} 21. Qd1 {[%clk 0:00:48.4]} 21... Rxb2 {[%clk 0:00:25]} 22. Na4
{[%clk 0:00:48.4]} 22... Rbb8 {[%clk 0:00:19.1]} 23. Nc5 {[%clk 0:00:47.5]}
23... Rb6 {[%clk 0:00:15.5]} 24. Nxd7 {[%clk 0:00:47.2]} 1-0